Cogmind - Beta 17 @@@ ROGUE MODE // 2026.08.12 @ 19:22:33 Player: Marc Result: Self-destructed Performance ------------- Evolutions (2) 1000 Regions Visited (4) 800 Robots Destroyed (6) 30 Value Destroyed (60) 60 Prototype IDs (0) 0 Alien Tech Used (0) 0 Bonus (0) 0 TOTAL SCORE: 1890 Bonus ------- None Cogmind --------- Core Integrity 400/550 Matter 267/300 Energy 59/100 System Corruption 0% Temperature Cool (9) Movement Core (150) Ox2 Location -8/Materials Parts ------- > --- POWER (1) -------- (None) > --- PROPULSION (4) --- (None) > --- UTILITY (4) ------ Small Storage Unit Weight Redist. System Signal Interpreter ECM Suite > --- WEAPON (2) ------- Improved Datajack > --- INVENTORY (8) ---- Compact Matter Pod (150) Peak State ------------ > --- POWER ------------ Light Ion Engine > --- PROPULSION ------- Flight Unit Flight Unit Flight Unit > --- UTILITY ---------- Small Storage Unit Weight Redist. System Signal Interpreter ECM Suite > --- WEAPON ----------- Improved Datajack > --- INVENTORY -------- Compact Matter Pod [Rating: 12] Favorites ----------- Power Light Ion Engine Engine Light Ion Engine Propulsion Flight Unit Leg Aluminum Leg Flight Unit Flight Unit Utility Sensor Array Device Sensor Array Storage Small Storage Unit Processor Signal Interpreter Weapon Light Assault Rifle Energy Gun Small Laser Ballistic Gun Light Assault Rifle Launcher Grenade Launcher Special Melee Weapon Improved Datajack Build | -11 -10 -10 -9 -8 ------- Run | Yrd Mat Min Mat Mat Slots Evolved 4 | . . . 2 2 Power . | . . . . . Propulsion 2 | . . . 1 1 Utility 2 | . . . 1 1 Weapon . | . . . . . Parts Attached 14 | . 7 . 2 5 Power 2 | . 1 . . 1 Engine 2 | . 1 . . 1 Core . | . . . . . Reactor . | . . . . . Propulsion 4 | . 2 . 1 1 Treads . | . . . . . Leg . | . . . . . Wheel . | . . . . . Hover . | . . . . . Flight 4 | . 2 . 1 1 Utility 5 | . 2 . 1 2 Device 3 | . 2 . . 1 Storage 1 | . . . . 1 Processor 1 | . . . 1 . Hackware . | . . . . . Protection . | . . . . . Artifact . | . . . . . Weapon 3 | . 2 . . 1 Energy Gun . | . . . . . Energy Cannon . | . . . . . Ballistic Gun 1 | . 1 . . . Ballistic Cannon . | . . . . . Launcher 1 | . 1 . . . Special Weapon . | . . . . . Impact Weapon . | . . . . . Slashing Weapon . | . . . . . Piercing Weapon . | . . . . . Special Melee Weapon 1 | . . . . 1 Unidentified Prototypes . | . . . . . Parts Lost 8 | . 1 . 3 4 Power 2 | . . . 1 1 Propulsion 4 | . . . 1 3 Utility 1 | . . . 1 . Weapon 1 | . 1 . . . Highest Loss Streak 4 | . 1 . 3 4 To Critical Strikes . | . . . . . Average Backups 3 | 5 4 5 4 1 Power . | 1 1 1 1 . Propulsion 1 | 3 1 2 1 . Utility . | . . 1 2 1 Weapon . | 1 1 . . . Tool/Special . | . . . . . Unused Backups 6 | . 4 1 . 1 Power . | . . . . . Propulsion 3 | . 2 1 . . Utility 1 | . . . . 1 Weapon 2 | . 2 . . . Tool/Special . | . . . . . Average Slot Usage (%) 71 | . 78 71 51 69 Engine 11 | . 14 14 4 5 Leg 9 | . 19 . . . Flight 17 | . 8 28 28 23 Device 15 | . 9 28 15 17 Storage 6 | . 9 . . 8 Processor 1 | . . . 2 9 Energy Gun 1 | . 2 . . . Ballistic Gun 3 | . 7 . . . Launcher 3 | . 6 . . . Special Melee Weapon 1 | . . . . 6 Peak Build Rating 12 | 6 7 5 6 12 Average Rating 6 | 6 5 5 4 10 On Entrance 5 | 6 6 5 5 4 Avg Prop Armor Cover (%) . | . . . . . Naked Turns . | . . . . . Heaviest Build 13 | 10 13 8 8 11 Greatest Support 20 | 20 20 8 12 18 Greatest Overweight (x) 1 | . . . . 1 Average Overweight (x) . | . . . . . Largest Inventory Capacity 8 | 8 8 5 5 8 Average Capacity 6 | 8 7 5 5 7 Most Carried 8 | 5 8 5 5 4 Average Carried 3 | 3 4 4 4 1 Final Capacity 8 | 8 5 5 5 8 Final Carried 5 | 2 5 5 5 1 Class Distribution -------------------- 100% | Mutant Dominant Class ---------------- Mutant | -10/Materials Mutant | -10/Mines Mutant | -9/Materials Mutant | -8/Materials Resources | -11 -10 -10 -9 -8 ----------- Run | Yrd Mat Min Mat Mat Matter Collected 308 | 200 33 75 . . Remotely . | . . . . . Salvage Created 55 | . 55 . . . Parts 11 | . 11 . . . Haulers Intercepted . | . . . . . Recyclers Shooed . | . . . . . Parts Field Recycled . | . . . . . Retrieved Matter . | . . . . . Parts Self-Destructed . | . . . . . Prevented . | . . . . . Parts Restored . | . . . . . Kills | -11 -10 -10 -9 -8 ------- Run | Yrd Mat Min Mat Mat Combat Hostiles Destroyed 6 | . 6 . . . Guns 3 | . 3 . . . AOE 3 | . 3 . . . Classes Destroyed 1 | . 1 . . . Swarmer 6 | . 6 . . . Best Kill Streak 3 | . 3 . . . Combat Bots Only 3 | . 3 . . . Max Kills in Single Turn 1 | . 1 . . . Gunslinging . | . . . . . Exploded 1 | . 1 . . . Melee . | . . . . . Uniques/NPCs Destroyed . | . . . . . Combat | -11 -10 -10 -9 -8 -------- Run | Yrd Mat Min Mat Mat Hostile Shots Fired 113 | . 41 26 17 29 Missed 54 | . 16 14 9 15 Hits 59 | . 25 12 8 14 Projectile 59 | . 25 12 8 14 Critical Strikes 1 | . . . . 1 Damage Taken 759 | . 300 103 120 236 Core 322 | . 75 56 41 150 Absorbed by Shields . | . . . . . Core Remaining (%) 78 | 100 . 47 89 . Volleys Fired 16 | . 16 . . . Largest 1 | . 1 . . . Hottest 30 | . 30 . . . Shots Fired 16 | . 16 . . . Gun 13 | . 13 . . . Cannon . | . . . . . Launcher 3 | . 3 . . . Special . | . . . . . Kinetic 13 | . 13 . . . Thermal . | . . . . . Explosive 3 | . 3 . . . Electromagnetic . | . . . . . Robot Hit Streak 2 | . 2 . . . Robot Miss Streak 5 | . 5 . . . Penetration Max . | . . . . . Secondary Targets . | . . . . . Shots Hit Robots 6 | . 6 . . . Core Hits 5 | . 5 . . . Critical Kills 1 | . 1 . . . Critical Parts Destroyed . | . . . . . Critical Strikes 1 | . 1 . . . Destroy 1 | . 1 . . . Melee Attacks . | . . . . . Impact . | . . . . . Slashing . | . . . . . Piercing . | . . . . . Sneak Attacks . | . . . . . Combat Hostiles . | . . . . . Follow-up Attacks . | . . . . . Damage Inflicted 227 | . 226 . . 1 Guns 39 | . 39 . . . Cannons . | . . . . . Explosions 187 | . 187 . . . Melee . | . . . . . Ramming 1 | . . . . 1 Kinetic 39 | . 39 . . . Thermal . | . . . . . Explosive 187 | . 187 . . . Electromagnetic . | . . . . . Impact . | . . . . . Slashing . | . . . . . Piercing . | . . . . . Highest Corruption . | . . . . . Average Corruption . | . . . . . Corruption Purged . | . . . . . Corruption Blocked . | . . . . . Overload Shots . | . . . . . Overflow Damage 34 | . 34 . . . Projectiles . | . . . . . Explosions 34 | . 34 . . . Melee . | . . . . . Knockbacks . | . . . . . Impact . | . . . . . Kinetic . | . . . . . Secondary . | . . . . . Self-Inflicted Damage 80 | . 80 . . . Shots 3 | . 3 . . . Rammed 2 | . . . . 2 Targets Rammed 2 | . . . . 2 Kicked . | . . . . . Crushed . | . . . . . Highest Temperature 7 | . . . . 7 Average Temperature 7 | . . . . 7 Received Heat Transfer 225 | . 27 27 27 144 Siege Activations . | . . . . . Martial Activations . | . . . . . Shielding Activations . | . . . . . Robots Disrupted . | . . . . . Combat Hostiles . | . . . . . Robots Corrupted . | . . . . . Combat Hostiles . | . . . . . Parts Fried . | . . . . . Impact Corruptions . | . . . . . Robots Melted . | . . . . . Combat Hostiles . | . . . . . Parts Melted . | . . . . . Heat Transferred . | . . . . . Parts Sabotaged . | . . . . . Parts Stolen . | . . . . . Parts Stripped . | . . . . . Power Chain Reactions . | . . . . . Alert | -11 -10 -10 -9 -8 ------- Run | Yrd Mat Min Mat Mat Maximum Alert Level . | . . . . . Low Security (%) 100 | 100 100 100 100 100 Level 1 . | . . . . . Level 2 . | . . . . . Level 3 . | . . . . . Level 4 . | . . . . . Level 5 . | . . . . . High Security . | . . . . . Max Security . | . . . . . Peak Influence 110 | . 110 32 60 60 Initial 32 | . . 32 . 25 Average 35 | . 54 12 8 24 Influence Increases 379 | . 214 . 60 105 Destroy 0b10 Robot/C 120 | . 120 . . . Destroy Leader 20 | . 20 . . . Successful Hack 14 | . 14 . . . Destroy Structure 15 | . 15 . . . Partial Spotted 45 | . . . . 45 Lose Combat Pursuer 165 | . 45 . 60 60 Influence Decreases 329 | . 130 84 . 115 Entered New Map 87 | . . 52 . 35 Time Decay 192 | . 120 32 . 40 Lost Part 50 | . 10 . . 40 Squads Dispatched 3 | . . . 1 2 Investigation . | . . . . . Extermination . | . . . . . Reinforcement 3 | . . . 1 2 Assault . | . . . . . Garrison . | . . . . . Intercept . | . . . . . Searches Triggered . | . . . . . Construction Impeded . | . . . . . Haulers Reinforced . | . . . . . Active Scanning Responses . | . . . . . Cargo Convoy Interrupts . | . . . . . Stealth | -11 -10 -10 -9 -8 --------- Run | Yrd Mat Min Mat Mat Distress Signals 3 | . 2 . 1 . Communications Jammed . | . . . . . Distress Signals . | . . . . . Times Spotted 57 | . 18 14 12 13 Peak Tracking Total 13 | . 7 5 10 13 Tactical Retreats 10 | . 3 4 2 1 ECM-based Alert Blocks 16 | . 2 12 2 . Traps | -11 -10 -10 -9 -8 ------- Run | Yrd Mat Min Mat Mat Traps Triggered . | . . . . . Indirectly . | . . . . . Trap Hack Attempts . | . . . . . Triggered . | . . . . . Disarmed . | . . . . . Reprogrammed . | . . . . . Reused . | . . . . . Traps Extracted . | . . . . . Installed . | . . . . . Triggered . | . . . . . Machines | -11 -10 -10 -9 -8 ---------- Run | Yrd Mat Min Mat Mat Machines Disabled . | . . . . . Max in Single Turn . | . . . . . Machines Repaired . | . . . . . Machines Dismantled . | . . . . . Machines Sabotaged . | . . . . . Overloaded Fab Kills . | . . . . . Hacking | -11 -10 -10 -9 -8 --------- Run | Yrd Mat Min Mat Mat Machines Accessed 6 | . 4 . . 2 Terminals 5 | . 3 . . 2 Fabricators . | . . . . . Repair Stations . | . . . . . Recycling Units 1 | . 1 . . . Scanalyzers . | . . . . . Garrison Access . | . . . . . Total Hacks 18 | . 13 . . 5 Successful 7 | . 6 . . 1 Failed 11 | . 7 . . 4 Catastrophic 2 | . 2 . . . Database Lockouts . | . . . . . Manual 4 | . 2 . . 2 Terminals 14 | . 9 . . 5 Fabricators . | . . . . . Repair Stations . | . . . . . Recycling Units 4 | . 4 . . . Scanalyzers . | . . . . . Garrison Access . | . . . . . Terminal Hacks 6 | . 5 . . 1 Dispatch Records 2 | . 2 . . . Maintenance Status 2 | . 1 . . 1 Transport Status 2 | . 2 . . . Fabricator Hacks . | . . . . . Repair Station Hacks . | . . . . . Recycling Unit Hacks 1 | . 1 . . . Process 1 | . 1 . . . Scanalyzer . | . . . . . Garrison Access Hacks . | . . . . . Unauthorized Hacks . | . . . . . Terminals . | . . . . . Fabricators . | . . . . . Repair Stations . | . . . . . Recycling Units . | . . . . . Scanalyzers . | . . . . . Garrison Access . | . . . . . Data Cores Recovered . | . . . . . Used . | . . . . . Hacking Detections 5 | . 3 . . 2 Full Trace Events 1 | . 1 . . . Feedback Events . | . . . . . Feedback Blocked . | . . . . . Robot Schematics Acquired . | . . . . . Robots Built . | . . . . . Authchips . | . . . . . Time . | . . . . . Total Robot Build Rating . | . . . . . Part Schematics Acquired . | . . . . . Parts Built . | . . . . . Authchips . | . . . . . Time . | . . . . . Total Part Build Rating . | . . . . . Part Studies Acquired . | . . . . . Parts Repaired . | . . . . . Time . | . . . . . Parts Recycled . | . . . . . Recycled Matter 6 | . 6 . . . Retrieved Matter . | . . . . . Retrieved Components . | . . . . . Parts Scanalyzed . | . . . . . Part Schematics Acquired . | . . . . . Parts Damaged . | . . . . . Bothacking | -11 -10 -10 -9 -8 ------------ Run | Yrd Mat Min Mat Mat Used RIF Installer . | . . . . . Robots Hacked . | . . . . . Non-combat . | . . . . . Combat . | . . . . . Robot Hacks Applied . | . . . . . Relay Couplers Released . | . . . . . Fabnet Peak Effective % . | . . . . . Robots Rewired . | . . . . . Allies Hacked . | . . . . . Hacks Repelled . | . . . . . Allies | -11 -10 -10 -9 -8 -------- Run | Yrd Mat Min Mat Mat Total Allies . | . . . . . Largest Group . | . . . . . Highest-Rated Group . | . . . . . Highest-Rated Ally . | . . . . . Total Orders . | . . . . . Ally Attacks . | . . . . . Total Damage . | . . . . . Kills . | . . . . . Allies Corrupted . | . . . . . Allies Melted . | . . . . . Intel | -11 -10 -10 -9 -8 ------- Run | Yrd Mat Min Mat Mat Active Infowar (turns) 365 | . 178 106 59 22 Sensors 313 | . 178 106 29 . ECM 203 | . 16 106 59 22 Robot Analysis Total . | . . . . . Derelict Logs Recovered . | . . . . . Drone Launches . | . . . . . Drone Recoveries . | . . . . . Exploration | -11 -10 -10 -9 -8 ------------- Run | Yrd Mat Min Mat Mat Turns Passed 571 | 3 291 106 79 92 Spaces Moved 866 | 1 228 281 162 194 Core . | . . . . . Treads . | . . . . . Legs 121 | 1 120 . . . Wheels . | . . . . . Hover . | . . . . . Flight 745 | . 108 281 162 194 Fastest Speed 34 | 120 37 37 34 34 Average Speed 48 | 120 80 37 35 37 Slowest Speed 120 | 120 120 37 37 120 Overloaded Moves . | . . . . . Propulsion Burnouts . | . . . . . Robots Hopped 15 | . 4 2 7 2 Potential Cave-ins . | . . . . . Cave-ins Triggered . | . . . . . Exploration Rate (%) 31 | 3 42 56 28 30 Regions Visited 4 Branch Regions 1 Pre-discovered Areas . | . . . . . Known Exits Taken 1 | . . . 1 . Unknown Exits Taken 3 | 1 1 1 . . Scrap Searched 1 | . . 1 . . Spaces Dug . | . . . . . Terrain Destroyed 21 | . 21 . . . Melee . | . . . . . Projectile . | . . . . . AOE 21 | . 21 . . . Terrain Rammed . | . . . . . Walls Destroyed . | . . . . . Machines Disabled . | . . . . . Actions | -11 -10 -10 -9 -8 --------- Run | Yrd Mat Min Mat Mat Total 990 | 4 320 280 175 211 Wait 87 | . 58 . 18 11 Move 834 | . 219 276 149 190 Hop 13 | . 4 2 5 2 Pick Up 10 | . 7 1 1 1 Fast Attach 2 | . 1 . 1 . Attach 10 | . 4 . 1 5 Detach 4 | . 4 . . . Swap 2 | . 2 . . . Drop 10 | 4 5 1 . . Fire 16 | . 16 . . . Melee . | . . . . . Ram 2 | . . . . 2 Kick . | . . . . . Crush . | . . . . . Escape Stasis . | . . . . . Rewire . | . . . . . Trap . | . . . . . Miscellaneous . | . . . . . Route ------- -11/Scrapyard -10/Materials (discovered 2 exits: [*Min x2]) -10/Mines (discovered 2 exits: [*Mat x2]) -9/Materials -8/Materials (discovered 1 exit: [*Fac]) History --------- Turn | Location | Event 4 | -11/Scrapyard | Discovered new exit (range 0) 4 | -11/Scrapyard | Entered Materials 72 | -10/Materials | Discovered new exit (range 3) 271 | -10/Materials | Discovered new exit (range 6) 295 | -10/Materials | Entered Mines 302 | -10/Mines | Build established: Mutant 366 | -10/Mines | Discovered new exit (range 10) 398 | -10/Mines | Discovered new exit (range 8) 401 | -10/Mines | Core integrity fell below 50% 401 | -10/Mines | Entered Materials 401 | -9/Materials | Evolved 2 slots: Propulsion x1, Utility x1 470 | -9/Materials | Discovered new exit (range 10) 471 | -9/Materials | Lost 3 parts (1p1n1u) 480 | -9/Materials | Identified exit to Materials 480 | -9/Materials | Entered another Materials area 480 | -8/Materials | Evolved 2 slots: Propulsion x1, Utility x1 570 | -8/Materials | Discovered new exit (range 15) 572 | -8/Materials | Self-destructed Last Messages --------------- 00492_ ALERT: Hostiles spotted, dispatching reinforcements to Terminal M008. 00492_ O-16 Technician locks terminal. 00501_ Acquired Imp. Datajack. 00518_ U-05 Engineer works on Hadron Collector. 00527_ T-07 Excavator is excavating. 00546_ Lgt. Ion Engine destroyed. 00547_ Flight Unit destroyed. 00547_ Critical hit (Burn: +37). 00548_ U-05 Engineer destroyed. 00548_ T-07 Excavator is excavating. 00550_ ALERT: Hostiles spotted, dispatching reinforcements to Terminal M012. 00562_ Flight Unit destroyed. 00570_ Slammed into G-47 Trooper. 00570_ Signal Interpreter broken. 00570_ Destabilizing: Short circuit. 00570_ EXIT=FOUND 00571_ Slammed into G-47 Trooper. 00571_ Flight Unit destroyed. Map ----- +----------------------------------------------------+ | ???????????????????????????????? | | ???????????????????????????????? | | ???????????????????????????????? | | ???????????????????????????????? | | ???????????????????????????????? | | ???????????????????????????????? | | ???????????????????????????????? | | ???????????????????????????????? | | ???????????????????????????????? | | ???????????????????????????????? | | ??????????????????????? ##?????? | | ????????????????????? ?????? | | ???????????????????? < ?????? | | ???????????????????? ?????? | | ????????????????????? ?????? | | ????????????????????? ?????? | | ????????????????????? ?????? | | ?????????????????????? #????? | | ?????????????????????? #????? | | ????????????????????### #????? | | ????????????????????? #a #????? | | ??????????????????????/ +????? | | ??????????????????????# #????? | | ??????????????????????#r #????? | | ??????????????????????# gg#????? | | ??????????????????????# g@#????? | | ??????????????????????# #####? | | ??????????????????????# g ]]#? | | ??????????????????????# ]]#? | | ??????????????????????# ]]#? | | ??????????????????????# ]]#? | | ??????????????????????# !!#? | | ??????????????????????# !!#? | | ??????????????????????# #####? | | ??????????????????????#w #????? | | ??????????????????????# #????? | | ??????????????????????# #????? | | ??????????????????????# ##???? | | ?????????????########?# T#???? | | ##???????????#[[!!==#?# ##???? | | #???????????#[[!!==#?# #????? | | ###??????????# #?# #????? | | ############ ### #????? | | !%* #????? | | ! #????? | | #????? | | #####+##????? | | ############## #??! ????? | | #????????????# ## ??? | | #????????????# ## """ #? | +----------------------------------------------------+ Best States ------------- Heat Dissipation 31 Energy Generation 10 Energy Capacity 250 Matter Stores 300 Matter Capacity 300 Sight Range 16 Robot Scan Range 14 Terrain Scan Density 10 ECM Strength 1 Additional Mass Support 6 Evasion (%) 63 Item Schematics ----------------- None Robot Schematics ------------------ None Fabricated ------------ Nothing Repaired ---------- Nothing Studied --------- None Alien Tech Used ----------------- None Achievements -------------- Cya! Challenges ------------ None Game ------ Seed ContainmentSwarmVibroblade Manual? 0 Play Time 00:14:16 Cumulative 16.5 hours Start 2026.08.12 @ 19:10:51 End 2026.08.12 @ 19:22:33 Sessions 1 Manual Loads 0 Difficulty Rogue Special Mode None Game No. 49 Rogue 42 Adventurer 7 Explorer 0 Win Type - Total 0 Types 0/0/0/0/0/0/0/0/0/0 Lore% 10 Gallery% 21 Achievement% 15 Wizard Run 0 Options --------- Layout 0 ASCII 0 Keyboard 0 Movement Mouse Keybinds 0 Fullscreen 1 Font 18/SmallcapsGlow Map View 38x25 Zoom Use 100% Tactical HUD 1 Map Filters NONE Filters NONE Steam 1 RUN: 1f08d344-dcdf-4c53-b844-d8b8dfe35515